[Event "*** SCC Grand Prix: Titled Tuesday Blitz"]
[Site "Chess.com"]
[Date "2020.08.11"]
[Round "8"]
[White "bazar-wokzal"]
[Black "Khazieva_Elza"]
[Result "1-0"]
[WhiteElo "2467"]
[BlackElo "2335"]
[TimeControl "180+1"]
[EndTime "11:34:19 PDT"]
[Termination "bazar-wokzal won by resignation"]

1. e4 {[%clk 0:03:00.8]} 1... c5 {[%clk 0:02:59.7]} 2. c3 {[%clk 0:03:00.8]}
2... d6 {[%clk 0:02:59]} 3. d4 {[%clk 0:03:00.6]} 3... Nf6 {[%clk 0:02:59.2]} 4.
Bd3 {[%clk 0:03:00.2]} 4... Nbd7 {[%clk 0:02:57.5]} 5. f4 {[%clk 0:02:58.5]}
5... e6 {[%clk 0:02:56.2]} 6. Nf3 {[%clk 0:02:58.2]} 6... Be7 {[%clk 0:02:56.5]}
7. O-O {[%clk 0:02:57.9]} 7... O-O {[%clk 0:02:56.7]} 8. e5 {[%clk 0:02:56.4]}
8... Nd5 {[%clk 0:02:50.2]} 9. Qe2 {[%clk 0:02:55.1]} 9... cxd4 {[%clk
0:02:30.8]} 10. Qe4 {[%clk 0:02:24.2]} 10... f5 {[%clk 0:02:20.4]} 11. exf6
{[%clk 0:02:24.1]} 11... N7xf6 {[%clk 0:02:18.3]} 12. Qxd4 {[%clk 0:02:24.1]}
12... Qb6 {[%clk 0:01:57]} 13. Na3 {[%clk 0:02:22.5]} 13... Ng4 {[%clk
0:01:37.6]} 14. Qxb6 {[%clk 0:02:13.2]} 14... Nxb6 {[%clk 0:01:28.7]} 15. Re1
{[%clk 0:02:01.3]} 15... Bd7 {[%clk 0:01:06.4]} 16. h3 {[%clk 0:01:42]} 16...
Nf6 {[%clk 0:01:03.6]} 17. Nc4 {[%clk 0:01:22.2]} 17... Nbd5 {[%clk 0:00:52.9]}
18. Nd4 {[%clk 0:01:18]} 18... Nc7 {[%clk 0:00:48.1]} 19. Bd2 {[%clk 0:01:11.4]}
19... b5 {[%clk 0:00:40.5]} 20. Na5 {[%clk 0:01:08.9]} 20... a6 {[%clk
0:00:34.5]} 21. Nac6 {[%clk 0:01:03.6]} 21... Rae8 {[%clk 0:00:32]} 22. a4
{[%clk 0:01:00]} 22... Nfd5 {[%clk 0:00:22.7]} 23. axb5 {[%clk 0:00:53.9]} 23...
axb5 {[%clk 0:00:22.6]} 24. Nxe7+ {[%clk 0:00:45.5]} 24... Rxe7 {[%clk
0:00:22.3]} 25. Ra7 {[%clk 0:00:41]} 25... Ne8 {[%clk 0:00:15.7]} 26. Bxb5
{[%clk 0:00:26.2]} 26... Bxb5 {[%clk 0:00:13.7]} 27. Rxe7 {[%clk 0:00:24.1]}
27... Nxe7 {[%clk 0:00:13.6]} 28. Nxb5 {[%clk 0:00:24.1]} 28... Rf6 {[%clk
0:00:10.9]} 29. g4 {[%clk 0:00:19.2]} 29... d5 {[%clk 0:00:09.8]} 30. f5 {[%clk
0:00:18.8]} 30... Nc6 {[%clk 0:00:04]} 31. Bg5 {[%clk 0:00:15.9]} 31... Rf7
{[%clk 0:00:03]} 32. Rxe6 {[%clk 0:00:16]} 32... Kf8 {[%clk 0:00:02.7]} 33. Rxc6
{[%clk 0:00:13.8]} 33... Rb7 {[%clk 0:00:02.8]} 34. Nd6 {[%clk 0:00:13.1]} 34...
Rxb2 {[%clk 0:00:02.7]} 35. Rc8 {[%clk 0:00:12.9]} 1-0

[Event "*** SCC Grand Prix: Titled Tuesday Blitz"]
[Site "Chess.com"]
[Date "2020.08.11"]
[Round "8"]
[White "Firouzja2003"]
[Black "Alexander_Zubov"]
[Result "1-0"]
[WhiteElo "3040"]
[BlackElo "2836"]
[TimeControl "180+1"]
[EndTime "11:34:22 PDT"]
[Termination "Firouzja2003 won by resignation"]

1. e4 {[%clk 0:03:00.9]} 1... c5 {[%clk 0:02:58.8]} 2. Nf3 {[%clk 0:03:01.2]}
2... e6 {[%clk 0:02:58.9]} 3. d4 {[%clk 0:03:00.7]} 3... cxd4 {[%clk 0:02:59.8]}
4. Nxd4 {[%clk 0:03:01.5]} 4... a6 {[%clk 0:03:00.4]} 5. c4 {[%clk 0:03:01.4]}
5... Nf6 {[%clk 0:02:59.6]} 6. Nc3 {[%clk 0:03:01.3]} 6... Bb4 {[%clk
0:02:59.3]} 7. Qf3 {[%clk 0:02:57.9]} 7... d6 {[%clk 0:02:57.9]} 8. Qg3 {[%clk
0:02:42.9]} 8... Nbd7 {[%clk 0:02:52]} 9. Bd2 {[%clk 0:02:26.4]} 9... O-O {[%clk
0:02:50.3]} 10. f3 {[%clk 0:02:13.6]} 10... d5 {[%clk 0:02:44.8]} 11. exd5
{[%clk 0:02:13.2]} 11... exd5 {[%clk 0:02:44.2]} 12. O-O-O {[%clk 0:02:13.4]}
12... Nb6 {[%clk 0:02:21.8]} 13. Bg5 {[%clk 0:01:54.1]} 13... Bxc3 {[%clk
0:01:48.2]} 14. bxc3 {[%clk 0:01:55]} 14... Na4 {[%clk 0:01:47.4]} 15. Rd3
{[%clk 0:01:40.2]} 15... Nc5 {[%clk 0:01:19.1]} 16. Re3 {[%clk 0:01:30.1]} 16...
Ne6 {[%clk 0:01:02.2]} 17. Nxe6 {[%clk 0:01:06.1]} 17... fxe6 {[%clk 0:01:02.4]}
18. Bd3 {[%clk 0:01:00]} 18... d4 {[%clk 0:00:58.3]} 19. cxd4 {[%clk 0:00:45.5]}
19... Qxd4 {[%clk 0:00:58.1]} 20. Qe5 {[%clk 0:00:44.5]} 20... Qb6 {[%clk
0:00:58]} 21. Rd1 {[%clk 0:00:41.5]} 21... Rf7 {[%clk 0:00:34.7]} 22. Bc2 {[%clk
0:00:39.2]} 22... Bd7 {[%clk 0:00:33.3]} 23. Red3 {[%clk 0:00:35.7]} 23... Bc6
{[%clk 0:00:31.8]} 24. Be3 {[%clk 0:00:30.2]} 24... Qb4 {[%clk 0:00:30.1]} 25.
Rd8+ {[%clk 0:00:27.7]} 25... Rf8 {[%clk 0:00:30.6]} 26. Bc5 {[%clk 0:00:23.4]}
26... Qxc5 {[%clk 0:00:27.1]} 27. Qxc5 {[%clk 0:00:24.3]} 27... Raxd8 {[%clk
0:00:27.2]} 28. Rxd8 {[%clk 0:00:24.7]} 28... Rxd8 {[%clk 0:00:28.1]} 29. Qe7
{[%clk 0:00:23.7]} 29... Re8 {[%clk 0:00:28.1]} 30. Qc7 {[%clk 0:00:23.8]} 30...
Kf8 {[%clk 0:00:28.8]} 31. Kb2 {[%clk 0:00:21.1]} 31... Re7 {[%clk 0:00:29.1]}
32. Qb8+ {[%clk 0:00:19.5]} 32... Kf7 {[%clk 0:00:29.4]} 33. Qe5 {[%clk
0:00:20.1]} 33... Rd7 {[%clk 0:00:29.3]} 34. g4 {[%clk 0:00:19.7]} 34... g6
{[%clk 0:00:26]} 35. g5 {[%clk 0:00:17.2]} 35... Nh5 {[%clk 0:00:22.4]} 36. Qh8
{[%clk 0:00:15.9]} 36... Rd2 {[%clk 0:00:17.7]} 37. Qxh7+ {[%clk 0:00:16.2]}
37... Kf8 {[%clk 0:00:18.2]} 38. Qxg6 {[%clk 0:00:15.8]} 38... Be8 {[%clk
0:00:18.2]} 39. Qh6+ {[%clk 0:00:10.4]} 39... Ng7 {[%clk 0:00:17.2]} 40. g6
{[%clk 0:00:07.5]} 1-0

[Event "*** SCC Grand Prix: Titled Tuesday Blitz"]
[Site "Chess.com"]
[Date "2020.08.11"]
[Round "8"]
[White "CraiggoryC"]
[Black "Klavdia_Nik"]
[Result "0-1"]
[WhiteElo "2166"]
[BlackElo "2052"]
[TimeControl "180+1"]
[EndTime "11:34:22 PDT"]
[Termination "Klavdia_Nik won on time"]

1. e4 {[%clk 0:03:00.9]} 1... g6 {[%clk 0:02:38]} 2. d4 {[%clk 0:03:00.5]} 2...
Bg7 {[%clk 0:02:37.8]} 3. Nc3 {[%clk 0:03:00.9]} 3... c6 {[%clk 0:02:35.7]} 4.
Be3 {[%clk 0:03:00.6]} 4... d6 {[%clk 0:02:36]} 5. Qd2 {[%clk 0:03:01.1]} 5...
b5 {[%clk 0:02:31.2]} 6. Bd3 {[%clk 0:02:58.1]} 6... a5 {[%clk 0:02:29.3]} 7.
Nf3 {[%clk 0:02:55.8]} 7... b4 {[%clk 0:02:29.2]} 8. Ne2 {[%clk 0:02:55.2]} 8...
Ba6 {[%clk 0:02:28.1]} 9. O-O {[%clk 0:02:49.4]} 9... Qc7 {[%clk 0:02:18.7]} 10.
a3 {[%clk 0:02:45.3]} 10... c5 {[%clk 0:02:13.5]} 11. Bxa6 {[%clk 0:02:17.8]}
11... Nxa6 {[%clk 0:02:08.5]} 12. axb4 {[%clk 0:02:17.3]} 12... cxb4 {[%clk
0:01:21.3]} 13. c3 {[%clk 0:02:04.5]} 13... Nf6 {[%clk 0:01:18.9]} 14. e5 {[%clk
0:01:55]} 14... Ne4 {[%clk 0:01:06.3]} 15. Qd3 {[%clk 0:01:36.6]} 15... f5
{[%clk 0:01:02.3]} 16. Nf4 {[%clk 0:01:09.3]} 16... Qd7 {[%clk 0:00:51]} 17. e6
{[%clk 0:00:30.8]} 17... Qb7 {[%clk 0:00:50.6]} 18. h4 {[%clk 0:00:19.2]} 18...
O-O {[%clk 0:00:44.4]} 19. h5 {[%clk 0:00:16.1]} 19... g5 {[%clk 0:00:44.9]} 20.
Nh3 {[%clk 0:00:13.2]} 20... h6 {[%clk 0:00:45.1]} 21. Nh2 {[%clk 0:00:10.6]}
21... bxc3 {[%clk 0:00:22.7]} 22. bxc3 {[%clk 0:00:10.1]} 22... d5 {[%clk
0:00:23.2]} 23. f4 {[%clk 0:00:09.4]} 23... g4 {[%clk 0:00:21.9]} 24. Nf2 {[%clk
0:00:09.3]} 24... g3 {[%clk 0:00:16.5]} 25. Nf3 {[%clk 0:00:08.6]} 25... gxf2+
{[%clk 0:00:16]} 26. Bxf2 {[%clk 0:00:08.8]} 26... Rac8 {[%clk 0:00:13.2]} 27.
Ne5 {[%clk 0:00:06.4]} 27... Rxc3 {[%clk 0:00:11.3]} 28. Qe2 {[%clk 0:00:05.2]}
28... Nb4 {[%clk 0:00:07]} 29. Ng6 {[%clk 0:00:04.7]} 29... Re8 {[%clk
0:00:06.4]} 30. Be1 {[%clk 0:00:04.2]} 30... Rc4 {[%clk 0:00:05.7]} 31. Rxa5
{[%clk 0:00:02.7]} 31... Qb6 {[%clk 0:00:05.3]} 32. Bxb4 {[%clk 0:00:02.4]}
32... Qxb4 {[%clk 0:00:03.6]} 33. Rfa1 {[%clk 0:00:02]} 33... Rcc8 {[%clk
0:00:01.1]} 0-1

[Event "*** SCC Grand Prix: Titled Tuesday Blitz"]
[Site "Chess.com"]
[Date "2020.08.11"]
[Round "8"]
[White "Cambek64"]
[Black "Zq1"]
[Result "0-1"]
[WhiteElo "2308"]
[BlackElo "2490"]
[TimeControl "180+1"]
[EndTime "11:34:24 PDT"]
[Termination "Zq1 won by resignation"]

1. d4 {[%clk 0:03:00.9]} 1... Nf6 {[%clk 0:02:59.4]} 2. Nc3 {[%clk 0:02:53.3]}
2... d5 {[%clk 0:02:58.6]} 3. Bf4 {[%clk 0:02:51.8]} 3... a6 {[%clk 0:02:58]} 4.
e3 {[%clk 0:02:51.6]} 4... e6 {[%clk 0:02:57.6]} 5. a3 {[%clk 0:02:50.1]} 5...
c5 {[%clk 0:02:57.5]} 6. Nf3 {[%clk 0:02:50.2]} 6... Nc6 {[%clk 0:02:55.5]} 7.
Be2 {[%clk 0:02:39.1]} 7... Bd6 {[%clk 0:02:48.7]} 8. Ne5 {[%clk 0:02:23]} 8...
Qc7 {[%clk 0:02:47.6]} 9. Nxc6 {[%clk 0:02:08.6]} 9... Bxf4 {[%clk 0:02:45.9]}
10. exf4 {[%clk 0:02:08.3]} 10... bxc6 {[%clk 0:02:34.1]} 11. Qd2 {[%clk
0:01:50.2]} 11... cxd4 {[%clk 0:02:33.1]} 12. Qxd4 {[%clk 0:01:46.9]} 12... c5
{[%clk 0:02:32.6]} 13. Qe5 {[%clk 0:01:43.3]} 13... Qxe5 {[%clk 0:02:28.7]} 14.
fxe5 {[%clk 0:01:42.8]} 14... Nd7 {[%clk 0:02:28.3]} 15. f4 {[%clk 0:01:43]}
15... g5 {[%clk 0:02:23.5]} 16. g3 {[%clk 0:01:41.8]} 16... gxf4 {[%clk
0:02:22]} 17. gxf4 {[%clk 0:01:41.1]} 17... Bb7 {[%clk 0:02:18.6]} 18. Bf3
{[%clk 0:01:41.4]} 18... f6 {[%clk 0:02:07.4]} 19. exf6 {[%clk 0:01:39.2]} 19...
Rf8 {[%clk 0:01:56.4]} 20. O-O {[%clk 0:01:28.1]} 20... Rxf6 {[%clk 0:01:55.6]}
21. Rae1 {[%clk 0:01:25.4]} 21... Kf7 {[%clk 0:01:49.7]} 22. Ne2 {[%clk
0:00:56.2]} 22... Rg8+ {[%clk 0:01:43.8]} 23. Ng3 {[%clk 0:00:55.6]} 23... Ke7
{[%clk 0:01:37.7]} 24. c4 {[%clk 0:00:50.1]} 24... Kd6 {[%clk 0:01:24.7]} 25.
cxd5 {[%clk 0:00:44.8]} 25... exd5 {[%clk 0:01:23.5]} 26. Bg2 {[%clk 0:00:34.7]}
26... Rgf8 {[%clk 0:01:21.7]} 27. f5 {[%clk 0:00:33.2]} 27... Ne5 {[%clk
0:01:17.9]} 28. Rd1 {[%clk 0:00:32.6]} 28... R6f7 {[%clk 0:00:43.7]} 29. Ne4+
{[%clk 0:00:31.5]} 29... Kc6 {[%clk 0:00:39.5]} 30. Ng5 {[%clk 0:00:31.8]} 30...
Rxf5 {[%clk 0:00:33.6]} 31. Bxd5+ {[%clk 0:00:28.4]} 31... Kb6 {[%clk
0:00:32.8]} 32. Rxf5 {[%clk 0:00:20.5]} 32... Rxf5 {[%clk 0:00:32.2]} 33. Bxb7
{[%clk 0:00:20.3]} 33... Rxg5+ {[%clk 0:00:31.8]} 34. Bg2 {[%clk 0:00:20.1]}
34... Nf3+ {[%clk 0:00:27.9]} 35. Kh1 {[%clk 0:00:19.6]} 35... Nd4 {[%clk
0:00:25.9]} 36. b4 {[%clk 0:00:19.2]} 36... a5 {[%clk 0:00:25.1]} 37. bxc5+
{[%clk 0:00:18.5]} 37... Kxc5 {[%clk 0:00:23.9]} 38. Rc1+ {[%clk 0:00:17.1]}
38... Kb5 {[%clk 0:00:22.1]} 39. Rc7 {[%clk 0:00:17.3]} 39... Rc5 {[%clk
0:00:19.4]} 40. h3 {[%clk 0:00:15.9]} 40... Rxc7 {[%clk 0:00:18.8]} 0-1

[Event "*** SCC Grand Prix: Titled Tuesday Blitz"]
[Site "Chess.com"]
[Date "2020.08.11"]
[Round "8"]
[White "pavelalexandru07"]
[Black "crossingthestreet"]
[Result "0-1"]
[WhiteElo "2217"]
[BlackElo "2399"]
[TimeControl "180+1"]
[EndTime "11:34:24 PDT"]
[Termination "crossingthestreet won by checkmate"]

1. e4 {[%clk 0:02:53.2]} 1... c6 {[%clk 0:03:00.1]} 2. d4 {[%clk 0:02:53]} 2...
d5 {[%clk 0:03:00.6]} 3. e5 {[%clk 0:02:50.3]} 3... c5 {[%clk 0:03:00.5]} 4.
dxc5 {[%clk 0:02:49.6]} 4... Nc6 {[%clk 0:03:01]} 5. f4 {[%clk 0:02:48.9]} 5...
e6 {[%clk 0:03:00.6]} 6. Be3 {[%clk 0:02:48.3]} 6... d4 {[%clk 0:03:00.5]} 7.
Bf2 {[%clk 0:02:48.2]} 7... Bxc5 {[%clk 0:03:00.9]} 8. Nf3 {[%clk 0:02:48.2]}
8... Nge7 {[%clk 0:02:57.9]} 9. c3 {[%clk 0:02:48.4]} 9... Nf5 {[%clk
0:02:32.8]} 10. b4 {[%clk 0:02:42.8]} 10... Bb6 {[%clk 0:02:21.9]} 11. b5 {[%clk
0:02:42.5]} 11... Nce7 {[%clk 0:02:15.1]} 12. Nxd4 {[%clk 0:02:26.8]} 12... Nxd4
{[%clk 0:02:14.4]} 13. Bxd4 {[%clk 0:02:26.5]} 13... Bxd4 {[%clk 0:02:13.1]} 14.
Qxd4 {[%clk 0:02:25.2]} 14... Qxd4 {[%clk 0:02:13.5]} 15. cxd4 {[%clk
0:02:25.2]} 15... Nf5 {[%clk 0:02:14.1]} 16. Nc3 {[%clk 0:02:01.2]} 16... Nxd4
{[%clk 0:02:13.3]} 17. Bd3 {[%clk 0:02:01.7]} 17... O-O {[%clk 0:02:09.7]} 18.
Kf2 {[%clk 0:02:02]} 18... b6 {[%clk 0:02:03.3]} 19. Ke3 {[%clk 0:01:57.2]}
19... Nf5+ {[%clk 0:01:58.3]} 20. Bxf5 {[%clk 0:01:57]} 20... exf5 {[%clk
0:01:59.2]} 21. Rhd1 {[%clk 0:01:50]} 21... Be6 {[%clk 0:01:59.3]} 22. Nd5
{[%clk 0:01:07]} 22... Rfd8 {[%clk 0:01:17.8]} 23. Nc7 {[%clk 0:01:04.7]} 23...
Rac8 {[%clk 0:01:15.3]} 24. Rxd8+ {[%clk 0:00:53.5]} 24... Rxd8 {[%clk 0:01:14]}
25. Nxe6 {[%clk 0:00:54]} 25... fxe6 {[%clk 0:01:14.5]} 26. Rc1 {[%clk
0:00:54.4]} 26... Rd7 {[%clk 0:01:13.5]} 27. Rc6 {[%clk 0:00:52.7]} 27... Kf7
{[%clk 0:01:13.5]} 28. g3 {[%clk 0:00:34]} 28... Ke7 {[%clk 0:01:11.4]} 29. h3
{[%clk 0:00:31.8]} 29... h5 {[%clk 0:01:08]} 30. h4 {[%clk 0:00:29.2]} 30... Kf7
{[%clk 0:01:03.1]} 31. Rd6 {[%clk 0:00:22.8]} 31... Rc7 {[%clk 0:00:50.6]} 32.
Kd4 {[%clk 0:00:21.6]} 32... Ke7 {[%clk 0:00:46]} 33. Rc6 {[%clk 0:00:20.7]}
33... Rxc6 {[%clk 0:00:38]} 34. bxc6 {[%clk 0:00:20.7]} 34... Kd8 {[%clk
0:00:38.5]} 35. Kc4 {[%clk 0:00:20.9]} 35... a6 {[%clk 0:00:38.6]} 36. a4 {[%clk
0:00:20.3]} 36... Kc7 {[%clk 0:00:38.9]} 37. Kd4 {[%clk 0:00:12.8]} 37... Kxc6
{[%clk 0:00:38.7]} 38. Kc4 {[%clk 0:00:13.2]} 38... b5+ {[%clk 0:00:38.8]} 39.
axb5+ {[%clk 0:00:13.3]} 39... axb5+ {[%clk 0:00:39.2]} 40. Kb4 {[%clk
0:00:13.7]} 40... Kb6 {[%clk 0:00:39.4]} 41. Kb3 {[%clk 0:00:12.7]} 41... Kc5
{[%clk 0:00:40.3]} 42. Kc3 {[%clk 0:00:13]} 42... b4+ {[%clk 0:00:40.5]} 43. Kb3
{[%clk 0:00:13.3]} 43... Kb5 {[%clk 0:00:41]} 44. Kb2 {[%clk 0:00:12.3]} 44...
Kc4 {[%clk 0:00:40.7]} 45. Kc2 {[%clk 0:00:12.9]} 45... b3+ {[%clk 0:00:40.8]}
46. Kb2 {[%clk 0:00:13.2]} 46... Kb4 {[%clk 0:00:40.5]} 47. Kb1 {[%clk
0:00:13.5]} 47... Kc3 {[%clk 0:00:40.8]} 48. Kc1 {[%clk 0:00:13.3]} 48... b2+
{[%clk 0:00:40.4]} 49. Kb1 {[%clk 0:00:13.6]} 49... Kb3 {[%clk 0:00:31.5]} 50.
g4 {[%clk 0:00:12.9]} 50... hxg4 {[%clk 0:00:32.1]} 51. h5 {[%clk 0:00:13.4]}
51... g3 {[%clk 0:00:32.3]} 52. h6 {[%clk 0:00:14]} 52... g2 {[%clk 0:00:32.3]}
53. hxg7 {[%clk 0:00:14.4]} 53... g1=Q# {[%clk 0:00:32.6]} 0-1

[Event "*** SCC Grand Prix: Titled Tuesday Blitz"]
[Site "Chess.com"]
[Date "2020.08.11"]
[Round "8"]
[White "chegueps"]
[Black "ShapkinAnatoliy"]
[Result "0-1"]
[WhiteElo "2469"]
[BlackElo "2740"]
[TimeControl "180+1"]
[EndTime "11:34:25 PDT"]
[Termination "ShapkinAnatoliy won on time"]

1. e4 {[%clk 0:03:00.9]} 1... e5 {[%clk 0:02:58.4]} 2. Qh5 {[%clk 0:02:59.3]}
2... Nc6 {[%clk 0:02:56.1]} 3. Bc4 {[%clk 0:02:59.3]} 3... g6 {[%clk 0:02:54.2]}
4. Qf3 {[%clk 0:02:58.2]} 4... Nf6 {[%clk 0:02:50.3]} 5. Ne2 {[%clk 0:02:58.4]}
5... Bg7 {[%clk 0:02:48.6]} 6. Nbc3 {[%clk 0:02:56.5]} 6... O-O {[%clk 0:02:47]}
7. d3 {[%clk 0:02:56.7]} 7... d6 {[%clk 0:02:47.1]} 8. h3 {[%clk 0:02:56.8]}
8... Be6 {[%clk 0:02:43]} 9. Bg5 {[%clk 0:02:52]} 9... h6 {[%clk 0:02:42.2]} 10.
Be3 {[%clk 0:02:44.2]} 10... Ne7 {[%clk 0:02:36.5]} 11. O-O-O {[%clk 0:02:37.6]}
11... d5 {[%clk 0:02:35.6]} 12. exd5 {[%clk 0:02:31.9]} 12... Nexd5 {[%clk
0:02:36.5]} 13. Bc5 {[%clk 0:02:31.7]} 13... Re8 {[%clk 0:02:35.9]} 14. Ne4
{[%clk 0:02:31.7]} 14... Nd7 {[%clk 0:02:11.8]} 15. Ba3 {[%clk 0:02:23.6]} 15...
N7b6 {[%clk 0:02:06.4]} 16. g4 {[%clk 0:02:21.4]} 16... Qh4 {[%clk 0:01:57]} 17.
Kb1 {[%clk 0:01:28.3]} 17... Rad8 {[%clk 0:01:51.2]} 18. Bb3 {[%clk 0:01:25.9]}
18... a5 {[%clk 0:01:48.9]} 19. Nc5 {[%clk 0:01:23.7]} 19... Bc8 {[%clk
0:01:42.9]} 20. Ka1 {[%clk 0:01:05.5]} 20... Qf6 {[%clk 0:01:31.4]} 21. Qxf6
{[%clk 0:00:58.9]} 21... Nxf6 {[%clk 0:01:22]} 22. f4 {[%clk 0:00:54.1]} 22...
Bf8 {[%clk 0:01:10.2]} 23. Rhf1 {[%clk 0:00:39.1]} 23... Kg7 {[%clk 0:01:01.5]}
24. Ng3 {[%clk 0:00:29.8]} 24... exf4 {[%clk 0:00:58.3]} 25. Rxf4 {[%clk
0:00:30.7]} 25... Nfd5 {[%clk 0:00:58.5]} 26. Rf3 {[%clk 0:00:28.9]} 26... a4
{[%clk 0:00:53.2]} 27. Nxa4 {[%clk 0:00:25.8]} 27... Bxa3 {[%clk 0:00:53.2]} 28.
Nxb6 {[%clk 0:00:26.2]} 28... Bxb2+ {[%clk 0:00:50.6]} 29. Kxb2 {[%clk
0:00:25.6]} 29... cxb6 {[%clk 0:00:51.5]} 30. Rdf1 {[%clk 0:00:23]} 30... Be6
{[%clk 0:00:51.6]} 31. Ne4 {[%clk 0:00:23.5]} 31... f5 {[%clk 0:00:49.7]} 32.
gxf5 {[%clk 0:00:23.5]} 32... Bxf5 {[%clk 0:00:50.6]} 33. Ng3 {[%clk 0:00:19.3]}
33... Be6 {[%clk 0:00:50.4]} 34. a4 {[%clk 0:00:19.6]} 34... Re7 {[%clk
0:00:43.7]} 35. Rg1 {[%clk 0:00:19.3]} 35... Kh7 {[%clk 0:00:40.3]} 36. Ne4
{[%clk 0:00:19.6]} 36... Rf7 {[%clk 0:00:31.1]} 37. Rfg3 {[%clk 0:00:04.7]}
37... g5 {[%clk 0:00:30.5]} 38. Rxg5 {[%clk 0:00:03.3]} 38... Nf4 {[%clk
0:00:12.7]} 0-1

[Event "*** SCC Grand Prix: Titled Tuesday Blitz"]
[Site "Chess.com"]
[Date "2020.08.11"]
[Round "8"]
[White "TargetA"]
[Black "belisarius64"]
[Result "0-1"]
[WhiteElo "2587"]
[BlackElo "2714"]
[TimeControl "180+1"]
[EndTime "11:34:26 PDT"]
[Termination "belisarius64 won on time"]

1. d4 {[%clk 0:03:00.9]} 1... Nf6 {[%clk 0:02:59.4]} 2. c4 {[%clk 0:03:00.6]}
2... g6 {[%clk 0:02:59.9]} 3. Nc3 {[%clk 0:03:00.5]} 3... Bg7 {[%clk 0:03:00.5]}
4. Nf3 {[%clk 0:02:56.1]} 4... d6 {[%clk 0:03:00.7]} 5. g3 {[%clk 0:02:56.1]}
5... O-O {[%clk 0:03:01.3]} 6. Bg2 {[%clk 0:02:56.2]} 6... Nc6 {[%clk
0:03:01.9]} 7. O-O {[%clk 0:02:52.8]} 7... e5 {[%clk 0:03:01.8]} 8. d5 {[%clk
0:02:50]} 8... Ne7 {[%clk 0:03:01.7]} 9. e4 {[%clk 0:02:47.2]} 9... Nd7 {[%clk
0:03:01.7]} 10. b4 {[%clk 0:02:42.7]} 10... a5 {[%clk 0:03:01.5]} 11. bxa5
{[%clk 0:02:40.6]} 11... Rxa5 {[%clk 0:02:59.4]} 12. a4 {[%clk 0:02:38.4]} 12...
Nc5 {[%clk 0:02:51.1]} 13. Nd2 {[%clk 0:02:34.5]} 13... f5 {[%clk 0:02:49.1]}
14. exf5 {[%clk 0:02:30]} 14... e4 {[%clk 0:02:33.2]} 15. f6 {[%clk 0:02:14.1]}
15... Bxf6 {[%clk 0:02:28.5]} 16. Bb2 {[%clk 0:02:08.7]} 16... e3 {[%clk
0:01:50.9]} 17. fxe3 {[%clk 0:02:09.6]} 17... Nf5 {[%clk 0:01:51.2]} 18. Qe2
{[%clk 0:01:40.2]} 18... Re8 {[%clk 0:01:46.3]} 19. Nde4 {[%clk 0:01:29.9]}
19... Bg7 {[%clk 0:01:22.1]} 20. Nxc5 {[%clk 0:01:23.2]} 20... Rxe3 {[%clk
0:01:22.4]} 21. Qd2 {[%clk 0:00:45.4]} 21... dxc5 {[%clk 0:01:22.3]} 22. g4
{[%clk 0:00:20.8]} 22... Bd4 {[%clk 0:01:20.9]} 23. Kh1 {[%clk 0:00:21.1]} 23...
Ng3+ {[%clk 0:00:45.4]} 24. hxg3 {[%clk 0:00:20.2]} 24... Rxg3 {[%clk
0:00:46.3]} 25. g5 {[%clk 0:00:13.7]} 25... Be3 {[%clk 0:00:42]} 26. Qxe3 {[%clk
0:00:11.4]} 26... Rxe3 {[%clk 0:00:41.4]} 27. Ne4 {[%clk 0:00:11.8]} 27... Rxe4
{[%clk 0:00:32.8]} 28. Bxe4 {[%clk 0:00:12.7]} 28... Qxg5 {[%clk 0:00:32.2]} 29.
Rae1 {[%clk 0:00:11.1]} 29... Rxa4 {[%clk 0:00:28.4]} 30. Bg2 {[%clk 0:00:09.6]}
30... Bd7 {[%clk 0:00:22.9]} 31. Bf6 {[%clk 0:00:08.8]} 31... Qh5+ {[%clk
0:00:19.4]} 32. Kg1 {[%clk 0:00:08.1]} 32... Ra2 {[%clk 0:00:19.4]} 33. Re7
{[%clk 0:00:07.8]} 33... Rxg2+ {[%clk 0:00:16.7]} 34. Kxg2 {[%clk 0:00:08.7]}
34... Bh3+ {[%clk 0:00:17.3]} 35. Kg1 {[%clk 0:00:09.1]} 35... Qg4+ {[%clk
0:00:17.5]} 36. Kf2 {[%clk 0:00:08.5]} 36... Qf4+ {[%clk 0:00:17.5]} 37. Ke2
{[%clk 0:00:07.7]} 37... Qxf1+ {[%clk 0:00:17.7]} 0-1